{"text_format":"1","workbook":"xlsx","n_sheets":2,"sheets":["Podatki za izračun plače","predloga_obrazcev"],"not_rendered":{"charts":0,"images":0,"macros":1,"external_links":0,"defined_names":7,"comments":0,"pivot_tables":0},"unopened":[],"bounds":{"document_bytes":16777216,"sheet_cells":100000,"rows_first":2000,"rows_last":500,"rows_between":2000,"halvings":0,"cell_chars":16384,"cell_head_chars":4096},"cells_cut":0,"cells_raw":0,"read":"whole","date_system":"1900"}

{"sheet":"Podatki za izračun plače","index":0,"n_rows":13,"n_cols":24,"rows_kept":13,"cut":false,"hidden":false,"merged":[]}
[null,"KALKULATOR ZA PLAČE",null,null,null,null,null,null,null,null,"KONEC OBDOBJA:",41372,null,"IME PODJETJA:",null,"ADVENTURE WORKS"]
[]
[null,"ID","Ime zaposlenega","Redne ure dela","Dopust","Bolniška","Nadure","Tarifa za nadure","Bruto plača","Davki in odbitki","Drugi odbitki","Neto plača"," ","Urna postavka","Davčni položaj","Dodatki","Državni davek","Državni davek na dohodek","Davek na socialno zavarovanje","Davek na zdravstvene storitve","Skupni zadržani davki","Odbitek zaradi zavarovanja","Drugi redni odbitki","Skupni redni odbitki"]
[null,1001,"Andrej Koklič",50,5,1,null,null,{"$f":"SUM(Zaposleni[[#This Row],[Redne ure dela]:[Bolniška]])*Zaposleni[[#This Row],[Urna postavka]]+Zaposleni[[#This Row],[Nadure]]*Zaposleni[[#This Row],[Tarifa za nadure]]","v":560},{"$f":"Zaposleni[[#This Row],[Bruto plača]]*Zaposleni[[#This Row],[Skupni zadržani davki]] + Zaposleni[[#This Row],[Skupni redni odbitki]]","v":273.08000000000004},20,{"$f":"Zaposleni[[#This Row],[Bruto plača]]-Zaposleni[[#This Row],[Davki in odbitki]]-Zaposleni[[#This Row],[Drugi odbitki]]","v":266.91999999999996},null,10,1,4,2.3E-2,0.28000000000000003,6.3E-2,1.4500000000000001E-2,{"$f":"SUM(Zaposleni[[#This Row],[Državni davek]:[Davek na zdravstvene storitve]])","v":0.38050000000000006},20,40,{"$f":"SUM(Zaposleni[[#This Row],[Odbitek zaradi zavarovanja]:[Drugi redni odbitki]])","v":60}]
[null,1002,"Janko Cajhen",40,null,null,null,null,{"$f":"SUM(Zaposleni[[#This Row],[Redne ure dela]:[Bolniška]])*Zaposleni[[#This Row],[Urna postavka]]+Zaposleni[[#This Row],[Nadure]]*Zaposleni[[#This Row],[Tarifa za nadure]]","v":320},{"$f":"Zaposleni[[#This Row],[Bruto plača]]*Zaposleni[[#This Row],[Skupni zadržani davki]] + Zaposleni[[#This Row],[Skupni redni odbitki]]","v":131.76000000000002},null,{"$f":"Zaposleni[[#This Row],[Bruto plača]]-Zaposleni[[#This Row],[Davki in odbitki]]-Zaposleni[[#This Row],[Drugi odbitki]]","v":188.23999999999998},null,8,1,1,2.3E-2,0.28000000000000003,6.3E-2,1.4500000000000001E-2,{"$f":"SUM(Zaposleni[[#This Row],[Državni davek]:[Davek na zdravstvene storitve]])","v":0.38050000000000006},0,10,{"$f":"SUM(Zaposleni[[#This Row],[Odbitek zaradi zavarovanja]:[Drugi redni odbitki]])","v":10}]
[null,1003,"Mojca Gostinčar",35,3,null,null,null,{"$f":"SUM(Zaposleni[[#This Row],[Redne ure dela]:[Bolniška]])*Zaposleni[[#This Row],[Urna postavka]]+Zaposleni[[#This Row],[Nadure]]*Zaposleni[[#This Row],[Tarifa za nadure]]","v":532},{"$f":"Zaposleni[[#This Row],[Bruto plača]]*Zaposleni[[#This Row],[Skupni zadržani davki]] + Zaposleni[[#This Row],[Skupni redni odbitki]]","v":240.42600000000004},null,{"$f":"Zaposleni[[#This Row],[Bruto plača]]-Zaposleni[[#This Row],[Davki in odbitki]]-Zaposleni[[#This Row],[Drugi odbitki]]","v":291.57399999999996},null,14,1,3,2.3E-2,0.28000000000000003,6.3E-2,1.4500000000000001E-2,{"$f":"SUM(Zaposleni[[#This Row],[Državni davek]:[Davek na zdravstvene storitve]])","v":0.38050000000000006},18,20,{"$f":"SUM(Zaposleni[[#This Row],[Odbitek zaradi zavarovanja]:[Drugi redni odbitki]])","v":38}]
[null,1008,"Erik Ušaj",50,5,1,null,null,{"$f":"SUM(Zaposleni[[#This Row],[Redne ure dela]:[Bolniška]])*Zaposleni[[#This Row],[Urna postavka]]+Zaposleni[[#This Row],[Nadure]]*Zaposleni[[#This Row],[Tarifa za nadure]]","v":1120},{"$f":"Zaposleni[[#This Row],[Bruto plača]]*Zaposleni[[#This Row],[Skupni zadržani davki]] + Zaposleni[[#This Row],[Skupni redni odbitki]]","v":441.16000000000008},null,{"$f":"Zaposleni[[#This Row],[Bruto plača]]-Zaposleni[[#This Row],[Davki in odbitki]]-Zaposleni[[#This Row],[Drugi odbitki]]","v":678.83999999999992},null,20,1,0,2.3E-2,0.28000000000000003,6.3E-2,1.4500000000000001E-2,{"$f":"SUM(Zaposleni[[#This Row],[Državni davek]:[Davek na zdravstvene storitve]])","v":0.38050000000000006},15,null,{"$f":"SUM(Zaposleni[[#This Row],[Odbitek zaradi zavarovanja]:[Drugi redni odbitki]])","v":15}]
[null,1011,"Tina Makovec",40,null,null,2,15,{"$f":"SUM(Zaposleni[[#This Row],[Redne ure dela]:[Bolniška]])*Zaposleni[[#This Row],[Urna postavka]]+Zaposleni[[#This Row],[Nadure]]*Zaposleni[[#This Row],[Tarifa za nadure]]","v":430},{"$f":"Zaposleni[[#This Row],[Bruto plača]]*Zaposleni[[#This Row],[Skupni zadržani davki]] + Zaposleni[[#This Row],[Skupni redni odbitki]]","v":223.61500000000004},null,{"$f":"Zaposleni[[#This Row],[Bruto plača]]-Zaposleni[[#This Row],[Davki in odbitki]]-Zaposleni[[#This Row],[Drugi odbitki]]","v":206.38499999999996},null,10,1,0,2.3E-2,0.28000000000000003,6.3E-2,1.4500000000000001E-2,{"$f":"SUM(Zaposleni[[#This Row],[Državni davek]:[Davek na zdravstvene storitve]])","v":0.38050000000000006},20,40,{"$f":"SUM(Zaposleni[[#This Row],[Odbitek zaradi zavarovanja]:[Drugi redni odbitki]])","v":60}]
[null,1012,"Lovro Munda",40,5,1,null,null,{"$f":"SUM(Zaposleni[[#This Row],[Redne ure dela]:[Bolniška]])*Zaposleni[[#This Row],[Urna postavka]]+Zaposleni[[#This Row],[Nadure]]*Zaposleni[[#This Row],[Tarifa za nadure]]","v":552},{"$f":"Zaposleni[[#This Row],[Bruto plača]]*Zaposleni[[#This Row],[Skupni zadržani davki]] + Zaposleni[[#This Row],[Skupni redni odbitki]]","v":270.03600000000006},null,{"$f":"Zaposleni[[#This Row],[Bruto plača]]-Zaposleni[[#This Row],[Davki in odbitki]]-Zaposleni[[#This Row],[Drugi odbitki]]","v":281.96399999999994},null,12,1,4,2.3E-2,0.28000000000000003,6.3E-2,1.4500000000000001E-2,{"$f":"SUM(Zaposleni[[#This Row],[Državni davek]:[Davek na zdravstvene storitve]])","v":0.38050000000000006},20,40,{"$f":"SUM(Zaposleni[[#This Row],[Odbitek zaradi zavarovanja]:[Drugi redni odbitki]])","v":60}]
[null,1025,"Ana Brlek",36,null,2,1,18,{"$f":"SUM(Zaposleni[[#This Row],[Redne ure dela]:[Bolniška]])*Zaposleni[[#This Row],[Urna postavka]]+Zaposleni[[#This Row],[Nadure]]*Zaposleni[[#This Row],[Tarifa za nadure]]","v":474},{"$f":"Zaposleni[[#This Row],[Bruto plača]]*Zaposleni[[#This Row],[Skupni zadržani davki]] + Zaposleni[[#This Row],[Skupni redni odbitki]]","v":225.35700000000003},25,{"$f":"Zaposleni[[#This Row],[Bruto plača]]-Zaposleni[[#This Row],[Davki in odbitki]]-Zaposleni[[#This Row],[Drugi odbitki]]","v":223.64299999999997},null,12,1,2,2.3E-2,0.28000000000000003,6.3E-2,1.4500000000000001E-2,{"$f":"SUM(Zaposleni[[#This Row],[Državni davek]:[Davek na zdravstvene storitve]])","v":0.38050000000000006},25,20,{"$f":"SUM(Zaposleni[[#This Row],[Odbitek zaradi zavarovanja]:[Drugi redni odbitki]])","v":45}]
[null,1032,"Luka Cvenkelj",40,5,1,null,null,{"$f":"SUM(Zaposleni[[#This Row],[Redne ure dela]:[Bolniška]])*Zaposleni[[#This Row],[Urna postavka]]+Zaposleni[[#This Row],[Nadure]]*Zaposleni[[#This Row],[Tarifa za nadure]]","v":460},{"$f":"Zaposleni[[#This Row],[Bruto plača]]*Zaposleni[[#This Row],[Skupni zadržani davki]] + Zaposleni[[#This Row],[Skupni redni odbitki]]","v":175.03000000000003},50,{"$f":"Zaposleni[[#This Row],[Bruto plača]]-Zaposleni[[#This Row],[Davki in odbitki]]-Zaposleni[[#This Row],[Drugi odbitki]]","v":234.96999999999997},null,10,1,3,2.3E-2,0.28000000000000003,6.3E-2,1.4500000000000001E-2,{"$f":"SUM(Zaposleni[[#This Row],[Državni davek]:[Davek na zdravstvene storitve]])","v":0.38050000000000006},null,null,{"$f":"SUM(Zaposleni[[#This Row],[Odbitek zaradi zavarovanja]:[Drugi redni odbitki]])","v":0}]
[null,1049,"David Rožič",40,1,null,null,null,{"$f":"SUM(Zaposleni[[#This Row],[Redne ure dela]:[Bolniška]])*Zaposleni[[#This Row],[Urna postavka]]+Zaposleni[[#This Row],[Nadure]]*Zaposleni[[#This Row],[Tarifa za nadure]]","v":615},{"$f":"Zaposleni[[#This Row],[Bruto plača]]*Zaposleni[[#This Row],[Skupni zadržani davki]] + Zaposleni[[#This Row],[Skupni redni odbitki]]","v":259.00750000000005},23,{"$f":"Zaposleni[[#This Row],[Bruto plača]]-Zaposleni[[#This Row],[Davki in odbitki]]-Zaposleni[[#This Row],[Drugi odbitki]]","v":332.99249999999995},null,15,1,2,2.3E-2,0.28000000000000003,6.3E-2,1.4500000000000001E-2,{"$f":"SUM(Zaposleni[[#This Row],[Državni davek]:[Davek na zdravstvene storitve]])","v":0.38050000000000006},25,null,{"$f":"SUM(Zaposleni[[#This Row],[Odbitek zaradi zavarovanja]:[Drugi redni odbitki]])","v":25}]
[null,"Skupno",{"$f":"SUBTOTAL(103,Zaposleni[Ime zaposlenega])","v":9},{"$f":"SUBTOTAL(109,Zaposleni[Redne ure dela])","v":371},{"$f":"SUBTOTAL(109,Zaposleni[Dopust])","v":24},{"$f":"SUBTOTAL(109,Zaposleni[Bolniška])","v":6},{"$f":"SUBTOTAL(109,Zaposleni[Nadure])","v":3},null,{"$f":"SUBTOTAL(109,Zaposleni[Bruto plača])","v":5063},{"$f":"SUBTOTAL(109,Zaposleni[Davki in odbitki])","v":2239.4715000000001},{"$f":"SUBTOTAL(109,Zaposleni[Drugi odbitki])","v":118},{"$f":"SUBTOTAL(109,Zaposleni[Neto plača])","v":2705.5284999999994},null,null,null,null,null,null,null,null,null,{"$f":"SUBTOTAL(109,Zaposleni[Odbitek zaradi zavarovanja])","v":143},{"$f":"SUBTOTAL(109,Zaposleni[Drugi redni odbitki])","v":170},{"$f":"SUBTOTAL(109,Zaposleni[Skupni redni odbitki])","v":313}]

{"sheet":"predloga_obrazcev","index":1,"n_rows":47,"n_cols":13,"rows_kept":47,"cut":false,"hidden":true,"merged":[[2,7,2,8],[14,7,14,8],[26,7,26,8],[38,7,38,8],[38,11,38,12],[26,11,26,12],[14,11,14,12],[2,11,2,12],[2,3,2,4],[14,3,14,4],[26,3,26,4],[38,3,38,4],[44,2,44,3],[8,2,8,3],[9,2,9,3],[45,2,45,3],[32,2,32,3],[33,2,33,3],[20,2,20,3],[21,2,21,3]]}
[]
[null,null,{"$f":"ImePodjetja","v":"ADVENTURE WORKS"}]
[null,null,"OBDOBJE",{"$f":"KonecObdobja","v":41372},null,null,"IME",{"$f":"IFERROR(INDEX(Zaposleni[Ime zaposlenega],Obrazec),\"\")","v":"Andrej Koklič"},null,null,"ID ZAPOSLENEGA",{"$f":"IFERROR(INDEX(Zaposleni[ID],Obrazec),\"\")","v":1001}]
[null,null,"Davčni položaj",null,{"$f":"IFERROR(INDEX(Zaposleni[Davčni položaj],Obrazec),\"\")","v":1},null,"Dodatki (iz W-4)",null,{"$f":"IFERROR(INDEX(Zaposleni[Dodatki],Obrazec),\"\")","v":4},null,"Ure dela",null,{"$f":"IFERROR(INDEX(Zaposleni[Redne ure dela],Obrazec),\"\")","v":50}]
[null,null,"Urna postavka",null,{"$f":"IFERROR(INDEX(Zaposleni[Urna postavka],Obrazec),\"\")","v":10},null,"Tarifa za nadure",null,{"$f":"IFERROR(INDEX(Zaposleni[Tarifa za nadure],Obrazec),\"\")","v":0},null,"Bolniška",null,{"$f":"IFERROR(INDEX(Zaposleni[Bolniška],Obrazec),\"\")","v":1}]
[null,null,"Davek na socialno zavarovanje",null,{"$f":"IFERROR(INDEX(Zaposleni[Davek na socialno zavarovanje],Obrazec)  *  INDEX(Zaposleni[Bruto plača],Obrazec),\"\")","v":35.28},null,"Državni davek na dohodek",null,{"$f":"IFERROR(INDEX(Zaposleni[Državni davek na dohodek],Obrazec)  *  INDEX(Zaposleni[Bruto plača],Obrazec),\"\")","v":156.80000000000001},null,"Dopust",null,{"$f":"IFERROR(INDEX(Zaposleni[Dopust],Obrazec),\"\")","v":5}]
[null,null,"Davek na zdravstvene storitve",null,{"$f":"IFERROR(INDEX(Zaposleni[Davek na zdravstvene storitve],Obrazec)  *  INDEX(Zaposleni[Bruto plača],Obrazec),\"\")","v":8.120000000000001},null,"Državni davek",null,{"$f":"IFERROR(INDEX(Zaposleni[Državni davek],Obrazec)  *  INDEX(Zaposleni[Bruto plača],Obrazec),\"\")","v":12.879999999999999},null,"Nadure",null,{"$f":"IFERROR(INDEX(Zaposleni[Nadure],Obrazec),\"\")","v":0}]
[null,null,"Odbitek zaradi zavarovanja",null,{"$f":"IFERROR(INDEX(Zaposleni[Odbitek zaradi zavarovanja],Obrazec),\"\")","v":20},null,"Drugi redni odbitki",null,{"$f":"IFERROR(INDEX(Zaposleni[Drugi redni odbitki],Obrazec),\"\")","v":40},null,"Bruto plača",null,{"$f":"IFERROR(INDEX(Zaposleni[Bruto plača],Obrazec),\"\")","v":560}]
[null,null,"Skupni davki in",null,{"$f":"IFERROR(INDEX(Zaposleni[Davki in odbitki],Obrazec),\"\")","v":273.08000000000004},null,"Drugi odbitki",null,{"$f":"IFERROR(INDEX(Zaposleni[Drugi odbitki],Obrazec),\"\")","v":20},null,"Skupaj davki in odbitki ",null,{"$f":"IFERROR(INDEX(Zaposleni[Davki in odbitki],Obrazec)  +  INDEX(Zaposleni[Drugi odbitki],Obrazec),\"\")","v":293.08000000000004}]
[null,null,"redni odbitki"]
[null,null,null,null,null,null,null,null,null,null,"NETO PLAČA",null,{"$f":"IFERROR(INDEX(Zaposleni[Neto plača],Obrazec),\"\")","v":266.91999999999996}]
[]
[]
[null,null,{"$f":"ImePodjetja","v":"ADVENTURE WORKS"}]
[null,null,"OBDOBJE",{"$f":"KonecObdobja","v":41372},null,null,"IME",{"$f":"IFERROR(INDEX(Zaposleni[Ime zaposlenega],Obrazec),\"\")","v":"Janko Cajhen"},null,null,"ID ZAPOSLENEGA",{"$f":"IFERROR(INDEX(Zaposleni[ID],Obrazec),\"\")","v":1002}]
[null,null,"Davčni položaj",null,{"$f":"IFERROR(INDEX(Zaposleni[Davčni položaj],Obrazec),\"\")","v":1},null,"Dodatki (iz W-4)",null,{"$f":"IFERROR(INDEX(Zaposleni[Dodatki],Obrazec),\"\")","v":1},null,"Ure dela",null,{"$f":"IFERROR(INDEX(Zaposleni[Redne ure dela],Obrazec),\"\")","v":40}]
[null,null,"Urna postavka",null,{"$f":"IFERROR(INDEX(Zaposleni[Urna postavka],Obrazec),\"\")","v":8},null,"Tarifa za nadure",null,{"$f":"IFERROR(INDEX(Zaposleni[Tarifa za nadure],Obrazec),\"\")","v":0},null,"Bolniška",null,{"$f":"IFERROR(INDEX(Zaposleni[Bolniška],Obrazec),\"\")","v":0}]
[null,null,"Davek na socialno zavarovanje",null,{"$f":"IFERROR(INDEX(Zaposleni[Davek na socialno zavarovanje],Obrazec)  *  INDEX(Zaposleni[Bruto plača],Obrazec),\"\")","v":20.16},null,"Državni davek na dohodek",null,{"$f":"IFERROR(INDEX(Zaposleni[Državni davek na dohodek],Obrazec)  *  INDEX(Zaposleni[Bruto plača],Obrazec),\"\")","v":89.600000000000009},null,"Dopust",null,{"$f":"IFERROR(INDEX(Zaposleni[Dopust],Obrazec),\"\")","v":0}]
[null,null,"Davek na zdravstvene storitve",null,{"$f":"IFERROR(INDEX(Zaposleni[Davek na zdravstvene storitve],Obrazec)  *  INDEX(Zaposleni[Bruto plača],Obrazec),\"\")","v":4.6400000000000006},null,"Državni davek",null,{"$f":"IFERROR(INDEX(Zaposleni[Državni davek],Obrazec)  *  INDEX(Zaposleni[Bruto plača],Obrazec),\"\")","v":7.3599999999999994},null,"Nadure",null,{"$f":"IFERROR(INDEX(Zaposleni[Nadure],Obrazec),\"\")","v":0}]
[null,null,"Odbitek zaradi zavarovanja",null,{"$f":"IFERROR(INDEX(Zaposleni[Odbitek zaradi zavarovanja],Obrazec),\"\")","v":0},null,"Drugi redni odbitki",null,{"$f":"IFERROR(INDEX(Zaposleni[Drugi redni odbitki],Obrazec),\"\")","v":10},null,"Bruto plača",null,{"$f":"IFERROR(INDEX(Zaposleni[Bruto plača],Obrazec),\"\")","v":320}]
[null,null,"Skupni davki in",null,{"$f":"IFERROR(INDEX(Zaposleni[Davki in odbitki],Obrazec),\"\")","v":131.76000000000002},null,"Drugi odbitki",null,{"$f":"IFERROR(INDEX(Zaposleni[Drugi odbitki],Obrazec),\"\")","v":0},null,"Skupaj davki in odbitki ",null,{"$f":"IFERROR(INDEX(Zaposleni[Davki in odbitki],Obrazec)  +  INDEX(Zaposleni[Drugi odbitki],Obrazec),\"\")","v":131.76000000000002}]
[null,null,"redni odbitki"]
[null,null,null,null,null,null,null,null,null,null,"NETO PLAČA",null,{"$f":"IFERROR(INDEX(Zaposleni[Neto plača],Obrazec),\"\")","v":188.23999999999998}]
[]
[]
[null,null,{"$f":"ImePodjetja","v":"ADVENTURE WORKS"}]
[null,null,"OBDOBJE",{"$f":"KonecObdobja","v":41372},null,null,"IME",{"$f":"IFERROR(INDEX(Zaposleni[Ime zaposlenega],Obrazec),\"\")","v":"Mojca Gostinčar"},null,null,"ID ZAPOSLENEGA",{"$f":"IFERROR(INDEX(Zaposleni[ID],Obrazec),\"\")","v":1003}]
[null,null,"Davčni položaj",null,{"$f":"IFERROR(INDEX(Zaposleni[Davčni položaj],Obrazec),\"\")","v":1},null,"Dodatki (iz W-4)",null,{"$f":"IFERROR(INDEX(Zaposleni[Dodatki],Obrazec),\"\")","v":3},null,"Ure dela",null,{"$f":"IFERROR(INDEX(Zaposleni[Redne ure dela],Obrazec),\"\")","v":35}]
[null,null,"Urna postavka",null,{"$f":"IFERROR(INDEX(Zaposleni[Urna postavka],Obrazec),\"\")","v":14},null,"Tarifa za nadure",null,{"$f":"IFERROR(INDEX(Zaposleni[Tarifa za nadure],Obrazec),\"\")","v":0},null,"Bolniška",null,{"$f":"IFERROR(INDEX(Zaposleni[Bolniška],Obrazec),\"\")","v":0}]
[null,null,"Davek na socialno zavarovanje",null,{"$f":"IFERROR(INDEX(Zaposleni[Davek na socialno zavarovanje],Obrazec)  *  INDEX(Zaposleni[Bruto plača],Obrazec),\"\")","v":33.515999999999998},null,"Državni davek na dohodek",null,{"$f":"IFERROR(INDEX(Zaposleni[Državni davek na dohodek],Obrazec)  *  INDEX(Zaposleni[Bruto plača],Obrazec),\"\")","v":148.96},null,"Dopust",null,{"$f":"IFERROR(INDEX(Zaposleni[Dopust],Obrazec),\"\")","v":3}]
[null,null,"Davek na zdravstvene storitve",null,{"$f":"IFERROR(INDEX(Zaposleni[Davek na zdravstvene storitve],Obrazec)  *  INDEX(Zaposleni[Bruto plača],Obrazec),\"\")","v":7.7140000000000004},null,"Državni davek",null,{"$f":"IFERROR(INDEX(Zaposleni[Državni davek],Obrazec)  *  INDEX(Zaposleni[Bruto plača],Obrazec),\"\")","v":12.236000000000001},null,"Nadure",null,{"$f":"IFERROR(INDEX(Zaposleni[Nadure],Obrazec),\"\")","v":0}]
[null,null,"Odbitek zaradi zavarovanja",null,{"$f":"IFERROR(INDEX(Zaposleni[Odbitek zaradi zavarovanja],Obrazec),\"\")","v":18},null,"Drugi redni odbitki",null,{"$f":"IFERROR(INDEX(Zaposleni[Drugi redni odbitki],Obrazec),\"\")","v":20},null,"Bruto plača",null,{"$f":"IFERROR(INDEX(Zaposleni[Bruto plača],Obrazec),\"\")","v":532}]
[null,null,"Skupni davki in",null,{"$f":"IFERROR(INDEX(Zaposleni[Davki in odbitki],Obrazec),\"\")","v":240.42600000000004},null,"Drugi odbitki",null,{"$f":"IFERROR(INDEX(Zaposleni[Drugi odbitki],Obrazec),\"\")","v":0},null,"Skupaj davki in odbitki ",null,{"$f":"IFERROR(INDEX(Zaposleni[Davki in odbitki],Obrazec)  +  INDEX(Zaposleni[Drugi odbitki],Obrazec),\"\")","v":240.42600000000004}]
[null,null,"redni odbitki"]
[null,null,null,null,null,null,null,null,null,null,"NETO PLAČA",null,{"$f":"IFERROR(INDEX(Zaposleni[Neto plača],Obrazec),\"\")","v":291.57399999999996}]
[]
[]
[null,null,{"$f":"ImePodjetja","v":"ADVENTURE WORKS"}]
[null,null,"OBDOBJE",{"$f":"KonecObdobja","v":41372},null,null,"IME",{"$f":"IFERROR(INDEX(Zaposleni[Ime zaposlenega],Obrazec),\"\")","v":"Erik Ušaj"},null,null,"ID ZAPOSLENEGA",{"$f":"IFERROR(INDEX(Zaposleni[ID],Obrazec),\"\")","v":1008}]
[null,null,"Davčni položaj",null,{"$f":"IFERROR(INDEX(Zaposleni[Davčni položaj],Obrazec),\"\")","v":1},null,"Dodatki (iz W-4)",null,{"$f":"IFERROR(INDEX(Zaposleni[Dodatki],Obrazec),\"\")","v":0},null,"Ure dela",null,{"$f":"IFERROR(INDEX(Zaposleni[Redne ure dela],Obrazec),\"\")","v":50}]
[null,null,"Urna postavka",null,{"$f":"IFERROR(INDEX(Zaposleni[Urna postavka],Obrazec),\"\")","v":20},null,"Tarifa za nadure",null,{"$f":"IFERROR(INDEX(Zaposleni[Tarifa za nadure],Obrazec),\"\")","v":0},null,"Bolniška",null,{"$f":"IFERROR(INDEX(Zaposleni[Bolniška],Obrazec),\"\")","v":1}]
[null,null,"Davek na socialno zavarovanje",null,{"$f":"IFERROR(INDEX(Zaposleni[Davek na socialno zavarovanje],Obrazec)  *  INDEX(Zaposleni[Bruto plača],Obrazec),\"\")","v":70.56},null,"Državni davek na dohodek",null,{"$f":"IFERROR(INDEX(Zaposleni[Državni davek na dohodek],Obrazec)  *  INDEX(Zaposleni[Bruto plača],Obrazec),\"\")","v":313.60000000000002},null,"Dopust",null,{"$f":"IFERROR(INDEX(Zaposleni[Dopust],Obrazec),\"\")","v":5}]
[null,null,"Davek na zdravstvene storitve",null,{"$f":"IFERROR(INDEX(Zaposleni[Davek na zdravstvene storitve],Obrazec)  *  INDEX(Zaposleni[Bruto plača],Obrazec),\"\")","v":16.240000000000002},null,"Državni davek",null,{"$f":"IFERROR(INDEX(Zaposleni[Državni davek],Obrazec)  *  INDEX(Zaposleni[Bruto plača],Obrazec),\"\")","v":25.759999999999998},null,"Nadure",null,{"$f":"IFERROR(INDEX(Zaposleni[Nadure],Obrazec),\"\")","v":0}]
[null,null,"Odbitek zaradi zavarovanja",null,{"$f":"IFERROR(INDEX(Zaposleni[Odbitek zaradi zavarovanja],Obrazec),\"\")","v":15},null,"Drugi redni odbitki",null,{"$f":"IFERROR(INDEX(Zaposleni[Drugi redni odbitki],Obrazec),\"\")","v":0},null,"Bruto plača",null,{"$f":"IFERROR(INDEX(Zaposleni[Bruto plača],Obrazec),\"\")","v":1120}]
[null,null,"Skupni davki in",null,{"$f":"IFERROR(INDEX(Zaposleni[Davki in odbitki],Obrazec),\"\")","v":441.16000000000008},null,"Drugi odbitki",null,{"$f":"IFERROR(INDEX(Zaposleni[Drugi odbitki],Obrazec),\"\")","v":0},null,"Skupaj davki in odbitki ",null,{"$f":"IFERROR(INDEX(Zaposleni[Davki in odbitki],Obrazec)  +  INDEX(Zaposleni[Drugi odbitki],Obrazec),\"\")","v":441.16000000000008}]
[null,null,"redni odbitki"]
[null,null,null,null,null,null,null,null,null,null,"NETO PLAČA",null,{"$f":"IFERROR(INDEX(Zaposleni[Neto plača],Obrazec),\"\")","v":678.83999999999992}]